[Event "*** Titled Tuesday Blitz"]
[Site "Chess.com"]
[Date "2020.05.19"]
[Round "7"]
[White "RubensCezila"]
[Black "1977Ivan"]
[Result "0-1"]
[WhiteElo "2463"]
[BlackElo "2636"]
[TimeControl "180+1"]
[EndTime "13:19:57 PDT"]
[Termination "1977Ivan won by resignation"]

1. c4 {[%clk 0:03:00.9]} 1... e5 {[%clk 0:02:59.3]} 2. Nc3 {[%clk 0:03:00.2]}
2... Bb4 {[%clk 0:02:59.6]} 3. Nd5 {[%clk 0:02:59.9]} 3... Bc5 {[%clk
0:02:59.3]} 4. e3 {[%clk 0:02:59.7]} 4... c6 {[%clk 0:02:58.6]} 5. Nc3 {[%clk
0:02:59.6]} 5... Qe7 {[%clk 0:02:57.1]} 6. Bd3 {[%clk 0:02:56]} 6... Nf6 {[%clk
0:02:56.2]} 7. Qc2 {[%clk 0:02:47.1]} 7... O-O {[%clk 0:02:35.7]} 8. Na4 {[%clk
0:02:43.5]} 8... Bb4 {[%clk 0:02:26.9]} 9. a3 {[%clk 0:02:41.9]} 9... Ba5 {[%clk
0:02:26.8]} 10. c5 {[%clk 0:02:38.1]} 10... e4 {[%clk 0:02:22.5]} 11. Bc4 {[%clk
0:02:31.2]} 11... d5 {[%clk 0:02:20.3]} 12. cxd6 {[%clk 0:02:30.2]} 12... Qxd6
{[%clk 0:02:20.4]} 13. b4 {[%clk 0:02:22.8]} 13... Bc7 {[%clk 0:02:19.9]} 14.
Nc5 {[%clk 0:02:14.9]} 14... Re8 {[%clk 0:02:17.9]} 15. Bb2 {[%clk 0:02:13.5]}
15... b6 {[%clk 0:02:14.4]} 16. Nb3 {[%clk 0:02:11.7]} 16... Nbd7 {[%clk
0:02:03]} 17. f4 {[%clk 0:02:03.2]} 17... b5 {[%clk 0:01:38]} 18. Be2 {[%clk
0:01:58]} 18... Nb6 {[%clk 0:01:33.8]} 19. Rc1 {[%clk 0:01:41.3]} 19... Nc4
{[%clk 0:01:21.2]} 20. Bxc4 {[%clk 0:01:20.9]} 20... bxc4 {[%clk 0:01:22.1]} 21.
Qxc4 {[%clk 0:01:21.3]} 21... Be6 {[%clk 0:01:18]} 22. Qc3 {[%clk 0:01:05.3]}
22... a5 {[%clk 0:01:12.2]} 23. Nc5 {[%clk 0:00:58.2]} 23... axb4 {[%clk
0:01:09.8]} 24. axb4 {[%clk 0:00:57.9]} 24... Ra2 {[%clk 0:00:44.4]} 25. Nxe4
{[%clk 0:00:52.6]} 25... Qd5 {[%clk 0:00:36.5]} 26. d3 {[%clk 0:00:24.6]} 26...
Rxb2 {[%clk 0:00:32.5]} 27. Qxb2 {[%clk 0:00:18.9]} 27... Nxe4 {[%clk
0:00:32.5]} 28. dxe4 {[%clk 0:00:18.1]} 28... Qxe4 {[%clk 0:00:33.4]} 29. Qc2
{[%clk 0:00:08.2]} 29... Qxe3+ {[%clk 0:00:32.4]} 30. Ne2 {[%clk 0:00:08.8]}
30... Bg4 {[%clk 0:00:31.2]} 0-1

[Event "*** Titled Tuesday Blitz"]
[Site "Chess.com"]
[Date "2020.05.19"]
[Round "7"]
[White "Roman_Ovetchkin"]
[Black "heartofatiger"]
[Result "1-0"]
[WhiteElo "2638"]
[BlackElo "2461"]
[TimeControl "180+1"]
[EndTime "13:20:00 PDT"]
[Termination "Roman_Ovetchkin won on time"]

1. d4 {[%clk 0:03:00.9]} 1... e6 {[%clk 0:03:00]} 2. e4 {[%clk 0:02:59.8]} 2...
d5 {[%clk 0:02:59.6]} 3. Nc3 {[%clk 0:02:59]} 3... Bb4 {[%clk 0:02:58.8]} 4. e5
{[%clk 0:02:58.5]} 4... Ne7 {[%clk 0:02:59.1]} 5. a3 {[%clk 0:02:57.9]} 5...
Bxc3+ {[%clk 0:02:59.4]} 6. bxc3 {[%clk 0:02:58.8]} 6... c5 {[%clk 0:02:58.5]}
7. h4 {[%clk 0:02:57.8]} 7... Qa5 {[%clk 0:02:56.7]} 8. Bd2 {[%clk 0:02:57.3]}
8... Nbc6 {[%clk 0:02:55.6]} 9. h5 {[%clk 0:02:56.5]} 9... h6 {[%clk 0:02:53]}
10. a4 {[%clk 0:02:52]} 10... Bd7 {[%clk 0:02:52.7]} 11. Nf3 {[%clk 0:02:49.7]}
11... O-O-O {[%clk 0:02:52.4]} 12. Qb1 {[%clk 0:02:33.5]} 12... Qc7 {[%clk
0:02:41.1]} 13. Be2 {[%clk 0:01:36.1]} 13... f6 {[%clk 0:02:39.1]} 14. exf6
{[%clk 0:01:28.7]} 14... gxf6 {[%clk 0:02:38.4]} 15. g3 {[%clk 0:01:27.5]} 15...
e5 {[%clk 0:02:36.9]} 16. dxc5 {[%clk 0:01:27.6]} 16... Bg4 {[%clk 0:02:18.2]}
17. Qb5 {[%clk 0:01:20.5]} 17... f5 {[%clk 0:02:04.2]} 18. a5 {[%clk 0:01:14.8]}
18... a6 {[%clk 0:01:57.7]} 19. Qb6 {[%clk 0:01:14.7]} 19... Qd7 {[%clk
0:01:46]} 20. Rb1 {[%clk 0:01:14.7]} 20... Bxf3 {[%clk 0:01:21.5]} 21. Bxf3
{[%clk 0:01:14.3]} 21... Rdf8 {[%clk 0:00:55]} 22. Be2 {[%clk 0:01:11.9]} 22...
f4 {[%clk 0:00:43.7]} 23. gxf4 {[%clk 0:01:11.7]} 23... exf4 {[%clk 0:00:43.6]}
24. Kd1 {[%clk 0:01:02]} 24... d4 {[%clk 0:00:40.5]} 25. c4 {[%clk 0:01:00.5]}
25... Rhg8 {[%clk 0:00:36.9]} 26. Bf3 {[%clk 0:00:56.5]} 26... Rf6 {[%clk
0:00:29.6]} 27. Re1 {[%clk 0:00:55.8]} 27... Rgf8 {[%clk 0:00:26.7]} 28. Kc1
{[%clk 0:00:52.3]} 28... d3 {[%clk 0:00:26]} 29. c3 {[%clk 0:00:52]} 29... Rg8
{[%clk 0:00:19.2]} 30. Kb2 {[%clk 0:00:47.6]} 30... Rf5 {[%clk 0:00:18.3]} 31.
Ka2 {[%clk 0:00:45.3]} 31... Qc7 {[%clk 0:00:17.6]} 32. Rxe7 {[%clk 0:00:41.6]}
32... Qxe7 {[%clk 0:00:14.1]} 33. Bxc6 {[%clk 0:00:40.7]} 33... Qxc5 {[%clk
0:00:08.6]} 34. Qxb7+ {[%clk 0:00:38.8]} 1-0

[Event "*** Titled Tuesday Blitz"]
[Site "Chess.com"]
[Date "2020.05.19"]
[Round "7"]
[White "Radzio1987"]
[Black "Hikaru"]
[Result "1/2-1/2"]
[WhiteElo "2919"]
[BlackElo "3188"]
[TimeControl "180+1"]
[EndTime "13:20:01 PDT"]
[Termination "Game drawn by agreement"]

1. c4 {[%clk 0:03:00.9]} 1... e5 {[%clk 0:02:56.7]} 2. Nc3 {[%clk 0:03:01]} 2...
Nf6 {[%clk 0:02:56.7]} 3. Nf3 {[%clk 0:03:00.6]} 3... Nc6 {[%clk 0:02:57]} 4. a3
{[%clk 0:03:01.1]} 4... d5 {[%clk 0:02:55.4]} 5. cxd5 {[%clk 0:03:01]} 5... Nxd5
{[%clk 0:02:56.3]} 6. Qc2 {[%clk 0:03:01.5]} 6... Nxc3 {[%clk 0:02:54]} 7. dxc3
{[%clk 0:03:02.4]} 7... a5 {[%clk 0:02:49.9]} 8. e3 {[%clk 0:03:01.7]} 8... Bc5
{[%clk 0:02:47.5]} 9. Bd3 {[%clk 0:03:00.1]} 9... h5 {[%clk 0:02:30.5]} 10. b3
{[%clk 0:02:54.3]} 10... g6 {[%clk 0:02:17.6]} 11. Bb2 {[%clk 0:02:51.9]} 11...
Qe7 {[%clk 0:02:16.1]} 12. b4 {[%clk 0:02:39.3]} 12... Bd6 {[%clk 0:02:15.6]}
13. O-O {[%clk 0:02:26]} 13... O-O {[%clk 0:02:09.4]} 14. Rac1 {[%clk
0:02:08.8]} 14... b6 {[%clk 0:01:35.3]} 15. Rcd1 {[%clk 0:01:40.4]} 15... Bb7
{[%clk 0:01:29]} 16. e4 {[%clk 0:01:40.5]} 16... Nd8 {[%clk 0:01:26.7]} 17. Bc4
{[%clk 0:01:36.8]} 17... Ne6 {[%clk 0:01:25.5]} 18. Bc1 {[%clk 0:01:37]} 18...
Kg7 {[%clk 0:01:23.9]} 19. Be3 {[%clk 0:01:31.5]} 19... axb4 {[%clk 0:01:23]}
20. axb4 {[%clk 0:01:31.3]} 20... f6 {[%clk 0:01:20.4]} 21. Qb3 {[%clk
0:01:26.2]} 21... Nd8 {[%clk 0:01:06.4]} 22. Bd5 {[%clk 0:01:24.4]} 22... c6
{[%clk 0:00:58.4]} 23. Bc4 {[%clk 0:01:24.2]} 23... b5 {[%clk 0:00:58.7]} 24.
Be2 {[%clk 0:01:24.1]} 24... Nf7 {[%clk 0:00:58.1]} 25. Nd2 {[%clk 0:01:09.6]}
25... Bc8 {[%clk 0:00:56.9]} 26. Ra1 {[%clk 0:01:08]} 26... Be6 {[%clk
0:00:56.2]} 27. Qb2 {[%clk 0:01:07.6]} 27... h4 {[%clk 0:00:50.1]} 28. Rxa8
{[%clk 0:01:01.8]} 28... Rxa8 {[%clk 0:00:49.6]} 29. Ra1 {[%clk 0:01:02.4]}
29... Qe8 {[%clk 0:00:46]} 30. Ra3 {[%clk 0:00:59.9]} 30... h3 {[%clk 0:00:43]}
31. g3 {[%clk 0:01:00.1]} 31... Be7 {[%clk 0:00:28.4]} 32. c4 {[%clk 0:00:57.7]}
32... Nd6 {[%clk 0:00:25.5]} 33. c5 {[%clk 0:00:45.6]} 33... Nf7 {[%clk
0:00:25.5]} 34. Qa1 {[%clk 0:00:45.3]} 34... Rd8 {[%clk 0:00:25.5]} 35. Ra7
{[%clk 0:00:44.5]} 35... Rd7 {[%clk 0:00:25.4]} 36. Qa6 {[%clk 0:00:39.9]} 36...
Rxa7 {[%clk 0:00:22.1]} 37. Qxa7 {[%clk 0:00:40.1]} 37... Qd7 {[%clk 0:00:22.5]}
38. Qxd7 {[%clk 0:00:39.8]} 38... Bxd7 {[%clk 0:00:23.4]} 39. f3 {[%clk
0:00:38.5]} 39... f5 {[%clk 0:00:19.3]} 1/2-1/2

[Event "*** Titled Tuesday Blitz"]
[Site "Chess.com"]
[Date "2020.05.19"]
[Round "7"]
[White "FeketeBarika"]
[Black "guillembaches"]
[Result "0-1"]
[WhiteElo "2263"]
[BlackElo "2413"]
[TimeControl "180+1"]
[EndTime "13:20:01 PDT"]
[Termination "guillembaches won by resignation"]

1. Nf3 {[%clk 0:02:54.9]} 1... d5 {[%clk 0:02:59.4]} 2. g3 {[%clk 0:02:47.5]}
2... g6 {[%clk 0:02:59.5]} 3. Bg2 {[%clk 0:02:47.6]} 3... Bg7 {[%clk 0:02:59.6]}
4. O-O {[%clk 0:02:47.9]} 4... e5 {[%clk 0:02:59.1]} 5. d3 {[%clk 0:02:47.2]}
5... Ne7 {[%clk 0:02:59]} 6. Bd2 {[%clk 0:02:31.1]} 6... O-O {[%clk 0:02:46.5]}
7. e4 {[%clk 0:02:30.1]} 7... Nbc6 {[%clk 0:02:42.9]} 8. Re1 {[%clk 0:02:28.7]}
8... h6 {[%clk 0:02:40.2]} 9. Nc3 {[%clk 0:02:27]} 9... Be6 {[%clk 0:02:39.6]}
10. exd5 {[%clk 0:02:25.6]} 10... Nxd5 {[%clk 0:02:38]} 11. Ne4 {[%clk
0:02:24.2]} 11... Qe7 {[%clk 0:02:29.7]} 12. Qe2 {[%clk 0:02:15.4]} 12... Rad8
{[%clk 0:02:21.9]} 13. Nc3 {[%clk 0:02:09.4]} 13... Nb6 {[%clk 0:02:07.8]} 14.
a4 {[%clk 0:02:03.6]} 14... a6 {[%clk 0:01:55.1]} 15. Be3 {[%clk 0:01:43.4]}
15... Nd4 {[%clk 0:01:47.2]} 16. Bxd4 {[%clk 0:01:37.4]} 16... exd4 {[%clk
0:01:46.9]} 17. Ne4 {[%clk 0:01:37.6]} 17... Nd5 {[%clk 0:01:39.9]} 18. Ned2
{[%clk 0:01:31.6]} 18... b5 {[%clk 0:01:34.4]} 19. axb5 {[%clk 0:01:30.4]} 19...
axb5 {[%clk 0:01:35.3]} 20. Nb3 {[%clk 0:01:30.5]} 20... c5 {[%clk 0:01:31.8]}
21. Ne5 {[%clk 0:01:29.3]} 21... Rc8 {[%clk 0:01:05.6]} 22. Na5 {[%clk
0:01:25.6]} 22... Rfe8 {[%clk 0:00:54.5]} 23. Nxg6 {[%clk 0:01:07]} 23... fxg6
{[%clk 0:00:52.4]} 24. Bxd5 {[%clk 0:01:06.6]} 24... Bxd5 {[%clk 0:00:48.1]} 25.
Qxe7 {[%clk 0:01:06.3]} 25... Rxe7 {[%clk 0:00:47.3]} 26. Rxe7 {[%clk
0:01:05.8]} 26... c4 {[%clk 0:00:47.4]} 27. dxc4 {[%clk 0:01:00.5]} 27... bxc4
{[%clk 0:00:47.1]} 28. Rae1 {[%clk 0:00:59.5]} 28... d3 {[%clk 0:00:43.4]} 29.
cxd3 {[%clk 0:00:58.8]} 29... cxd3 {[%clk 0:00:44.3]} 30. Re8+ {[%clk
0:00:57.4]} 30... Rxe8 {[%clk 0:00:44.4]} 31. Rxe8+ {[%clk 0:00:57.1]} 31... Kf7
{[%clk 0:00:44.5]} 32. Rd8 {[%clk 0:00:52.8]} 32... Ke6 {[%clk 0:00:43.6]} 33.
Kf1 {[%clk 0:00:50.4]} 33... Bxb2 {[%clk 0:00:43.6]} 34. Rxd5 {[%clk 0:00:24]}
34... Kxd5 {[%clk 0:00:41.3]} 35. Nb3 {[%clk 0:00:23.9]} 35... Bc3 {[%clk
0:00:34.4]} 36. f3 {[%clk 0:00:22.2]} 36... Kc4 {[%clk 0:00:29]} 0-1

[Event "*** Titled Tuesday Blitz"]
[Site "Chess.com"]
[Date "2020.05.19"]
[Round "7"]
[White "jucAxx"]
[Black "VALPARAISO37"]
[Result "0-1"]
[WhiteElo "2095"]
[BlackElo "2304"]
[TimeControl "180+1"]
[EndTime "13:20:01 PDT"]
[Termination "VALPARAISO37 won by resignation"]

1. e4 {[%clk 0:03:00.9]} 1... e5 {[%clk 0:02:59.5]} 2. Nc3 {[%clk 0:03:00.7]}
2... Nc6 {[%clk 0:02:59.5]} 3. Bc4 {[%clk 0:03:00.7]} 3... Nf6 {[%clk
0:02:58.2]} 4. d3 {[%clk 0:03:00.3]} 4... Bc5 {[%clk 0:02:57.4]} 5. h3 {[%clk
0:02:58.8]} 5... Na5 {[%clk 0:02:56.9]} 6. Bb3 {[%clk 0:02:57.4]} 6... d6 {[%clk
0:02:56.4]} 7. Na4 {[%clk 0:02:57.1]} 7... Nxb3 {[%clk 0:02:55.5]} 8. axb3
{[%clk 0:02:57]} 8... Bb4+ {[%clk 0:02:53.3]} 9. c3 {[%clk 0:02:55.8]} 9... Ba5
{[%clk 0:02:53.1]} 10. b4 {[%clk 0:02:55.3]} 10... Bb6 {[%clk 0:02:52.7]} 11.
Nxb6 {[%clk 0:02:55.5]} 11... cxb6 {[%clk 0:02:53.4]} 12. Nf3 {[%clk 0:02:54.9]}
12... O-O {[%clk 0:02:50.6]} 13. Bg5 {[%clk 0:02:55]} 13... h6 {[%clk
0:02:48.6]} 14. Bh4 {[%clk 0:02:54.6]} 14... Re8 {[%clk 0:02:47.4]} 15. O-O
{[%clk 0:02:54.4]} 15... g5 {[%clk 0:02:46.1]} 16. Bg3 {[%clk 0:02:54.4]} 16...
Nh7 {[%clk 0:02:44.2]} 17. Nd2 {[%clk 0:02:39.4]} 17... a6 {[%clk 0:02:42.7]}
18. Qh5 {[%clk 0:02:36.6]} 18... Kg7 {[%clk 0:02:42]} 19. b5 {[%clk 0:02:25.5]}
19... Be6 {[%clk 0:02:37.7]} 20. bxa6 {[%clk 0:02:18.6]} 20... bxa6 {[%clk
0:02:35.5]} 21. d4 {[%clk 0:02:18.6]} 21... f6 {[%clk 0:02:33.6]} 22. d5 {[%clk
0:02:09.7]} 22... Bf7 {[%clk 0:02:32]} 23. Qe2 {[%clk 0:02:09.8]} 23... b5
{[%clk 0:02:30.8]} 24. h4 {[%clk 0:02:06.2]} 24... Qb6 {[%clk 0:02:29.9]} 25.
hxg5 {[%clk 0:02:04.3]} 25... hxg5 {[%clk 0:02:29.8]} 26. Nb3 {[%clk 0:02:00.9]}
26... Nf8 {[%clk 0:02:28.6]} 27. Na5 {[%clk 0:02:00.8]} 27... Ng6 {[%clk
0:02:27.6]} 28. Nc6 {[%clk 0:02:00.3]} 28... Rh8 {[%clk 0:02:25.4]} 29. Qe3
{[%clk 0:01:39.6]} 29... Qc7 {[%clk 0:02:17.8]} 30. f3 {[%clk 0:01:35.7]} 30...
Nf4 {[%clk 0:02:15.6]} 31. Bxf4 {[%clk 0:01:35.3]} 31... gxf4 {[%clk 0:02:13.9]}
32. Qd2 {[%clk 0:01:32.9]} 32... Rh4 {[%clk 0:01:59.3]} 33. Kf2 {[%clk
0:01:32.6]} 33... Qb6+ {[%clk 0:01:56.9]} 34. Ke2 {[%clk 0:01:31.9]} 34... Rh2
{[%clk 0:01:56.3]} 35. Kd3 {[%clk 0:01:22.8]} 35... f5 {[%clk 0:01:53.6]} 36.
Rh1 {[%clk 0:01:18]} 36... Rah8 {[%clk 0:01:52]} 37. Rxh2 {[%clk 0:01:17.1]}
37... Rxh2 {[%clk 0:01:52]} 38. Rf1 {[%clk 0:01:01.4]} 38... a5 {[%clk
0:01:48.2]} 39. Rf2 {[%clk 0:00:59.4]} 39... a4 {[%clk 0:01:42.8]} 40. Ne7
{[%clk 0:00:58.5]} 40... fxe4+ {[%clk 0:01:41.9]} 41. fxe4 {[%clk 0:00:58.6]}
41... Qc5 {[%clk 0:01:33.3]} 42. Nf5+ {[%clk 0:00:57.1]} 42... Kf8 {[%clk
0:01:32.6]} 43. Kc2 {[%clk 0:00:18]} 43... b4 {[%clk 0:01:30.2]} 44. Rf1 {[%clk
0:00:15.3]} 44... b3+ {[%clk 0:01:15.5]} 45. Kb1 {[%clk 0:00:12]} 45... Qc4
{[%clk 0:01:07.5]} 46. Rd1 {[%clk 0:00:08.6]} 46... Qxe4+ {[%clk 0:01:06.3]} 47.
Qd3 {[%clk 0:00:07.6]} 47... Qxd3+ {[%clk 0:01:06.6]} 0-1

[Event "*** Titled Tuesday Blitz"]
[Site "Chess.com"]
[Date "2020.05.19"]
[Round "7"]
[White "savagemedusa"]
[Black "WiktoriaPOL"]
[Result "1-0"]
[WhiteElo "2246"]
[BlackElo "2006"]
[TimeControl "180+1"]
[EndTime "13:20:01 PDT"]
[Termination "savagemedusa won by checkmate"]

1. d4 {[%clk 0:02:54.9]} 1... Nf6 {[%clk 0:02:59.3]} 2. c4 {[%clk 0:02:50.1]}
2... g6 {[%clk 0:02:58.9]} 3. Nc3 {[%clk 0:02:48.1]} 3... Bg7 {[%clk 0:02:56.3]}
4. e4 {[%clk 0:02:46.3]} 4... d6 {[%clk 0:02:55.5]} 5. Be2 {[%clk 0:02:37.9]}
5... O-O {[%clk 0:02:54.5]} 6. Be3 {[%clk 0:02:27.8]} 6... e5 {[%clk 0:02:52.1]}
7. d5 {[%clk 0:02:26.2]} 7... Ne8 {[%clk 0:02:43.7]} 8. g4 {[%clk 0:02:12.1]}
8... f5 {[%clk 0:02:37.6]} 9. gxf5 {[%clk 0:02:05.8]} 9... gxf5 {[%clk
0:02:37.2]} 10. exf5 {[%clk 0:02:06]} 10... Bxf5 {[%clk 0:02:37.1]} 11. h4
{[%clk 0:01:56.2]} 11... Nf6 {[%clk 0:02:34.2]} 12. h5 {[%clk 0:01:47.4]} 12...
h6 {[%clk 0:02:25.4]} 13. f3 {[%clk 0:01:28.7]} 13... Kh7 {[%clk 0:02:19.3]} 14.
Bd3 {[%clk 0:01:23]} 14... Qd7 {[%clk 0:02:15.7]} 15. Qc2 {[%clk 0:01:18.9]}
15... Bxd3 {[%clk 0:01:54]} 16. Qxd3+ {[%clk 0:01:17.7]} 16... Kh8 {[%clk
0:01:53.6]} 17. O-O-O {[%clk 0:01:12.6]} 17... Qf7 {[%clk 0:01:46.7]} 18. Qg6
{[%clk 0:00:57.8]} 18... Qxg6 {[%clk 0:01:45.1]} 19. hxg6 {[%clk 0:00:57.9]}
19... Ng8 {[%clk 0:01:31.6]} 20. Ne4 {[%clk 0:00:53]} 20... Rf5 {[%clk
0:01:20.6]} 21. Ng5 {[%clk 0:00:49.6]} 21... Bf6 {[%clk 0:01:09.4]} 22. Nf7+
{[%clk 0:00:41]} 22... Kg7 {[%clk 0:01:08.9]} 23. Nxh6 {[%clk 0:00:33.4]} 23...
Nxh6 {[%clk 0:01:07]} 24. Rxh6 {[%clk 0:00:29.7]} 24... Na6 {[%clk 0:00:53.4]}
25. Ne2 {[%clk 0:00:22.7]} 25... Bg5 {[%clk 0:00:50.8]} 26. Bxg5 {[%clk
0:00:21.9]} 26... Rxg5 {[%clk 0:00:51.7]} 27. Rdh1 {[%clk 0:00:20.3]} 27... Rxg6
{[%clk 0:00:50.4]} 28. Rh7+ {[%clk 0:00:20.9]} 28... Kf6 {[%clk 0:00:48.2]} 29.
Nc3 {[%clk 0:00:21.5]} 29... Rg7 {[%clk 0:00:35.4]} 30. Ne4+ {[%clk 0:00:20.8]}
30... Kf7 {[%clk 0:00:34.6]} 31. Ng5+ {[%clk 0:00:20.5]} 31... Kf6 {[%clk
0:00:26.5]} 32. R1h6+ {[%clk 0:00:19.6]} 32... Rg6 {[%clk 0:00:26.5]} 33. Ne4+
{[%clk 0:00:19.4]} 33... Kf5 {[%clk 0:00:25.1]} 34. Rf7+ {[%clk 0:00:19.4]}
34... Rf6 {[%clk 0:00:21.6]} 35. Rfxf6# {[%clk 0:00:19.3]} 1-0

[Event "*** Titled Tuesday Blitz"]
[Site "Chess.com"]
[Date "2020.05.19"]
[Round "7"]
[White "ErikRonka"]
[Black "antoszu"]
[Result "0-1"]
[WhiteElo "2374"]
[BlackElo "2540"]
[TimeControl "180+1"]
[EndTime "13:20:03 PDT"]
[Termination "antoszu won on time"]

1. e4 {[%clk 0:03:00.9]} 1... c5 {[%clk 0:02:57.9]} 2. Nf3 {[%clk 0:03:00.6]}
2... e6 {[%clk 0:02:58.4]} 3. d4 {[%clk 0:03:00.8]} 3... cxd4 {[%clk 0:02:59.3]}
4. Nxd4 {[%clk 0:03:01.7]} 4... a6 {[%clk 0:02:59.7]} 5. Nc3 {[%clk 0:03:02]}
5... Qc7 {[%clk 0:02:59.3]} 6. Qf3 {[%clk 0:03:01.9]} 6... Nf6 {[%clk 0:02:57]}
7. Bg5 {[%clk 0:03:01.9]} 7... Be7 {[%clk 0:02:56.1]} 8. Be2 {[%clk 0:02:59.8]}
8... d6 {[%clk 0:02:56.3]} 9. Qg3 {[%clk 0:02:47.6]} 9... Nbd7 {[%clk
0:02:54.2]} 10. f4 {[%clk 0:02:46.4]} 10... O-O {[%clk 0:02:37.7]} 11. O-O-O
{[%clk 0:02:05.8]} 11... b5 {[%clk 0:02:29.7]} 12. Bh6 {[%clk 0:01:42.3]} 12...
Ne8 {[%clk 0:02:28.7]} 13. f5 {[%clk 0:01:40.7]} 13... Ndf6 {[%clk 0:02:19.3]}
14. a3 {[%clk 0:01:26.6]} 14... e5 {[%clk 0:02:12.9]} 15. Nb3 {[%clk 0:01:22.8]}
15... Bb7 {[%clk 0:02:12.9]} 16. Bf3 {[%clk 0:01:20]} 16... Rc8 {[%clk
0:02:12.6]} 17. Nd2 {[%clk 0:00:57.6]} 17... a5 {[%clk 0:02:08.4]} 18. Kb1
{[%clk 0:00:19.3]} 18... b4 {[%clk 0:02:08.6]} 19. Na2 {[%clk 0:00:14.4]} 19...
Qxc2+ {[%clk 0:02:05.6]} 20. Ka1 {[%clk 0:00:14.5]} 20... bxa3 {[%clk
0:01:38.5]} 21. bxa3 {[%clk 0:00:14]} 21... Rb8 {[%clk 0:01:32.2]} 22. Rc1
{[%clk 0:00:12.6]} 22... Qd3 {[%clk 0:01:28.3]} 23. Rc3 {[%clk 0:00:12.2]} 23...
Qa6 {[%clk 0:01:22.5]} 24. Rb1 {[%clk 0:00:12.3]} 24... Rc8 {[%clk 0:01:05.1]}
25. Rxc8 {[%clk 0:00:11.4]} 25... Bxc8 {[%clk 0:01:06]} 26. Be3 {[%clk
0:00:11.1]} 26... Bb7 {[%clk 0:00:49.5]} 27. Qf2 {[%clk 0:00:11.4]} 27... Qa8
{[%clk 0:00:48.4]} 28. Nc3 {[%clk 0:00:09.4]} 28... d5 {[%clk 0:00:46.6]} 29.
exd5 {[%clk 0:00:09]} 29... Bxa3 {[%clk 0:00:46.6]} 30. g4 {[%clk 0:00:07.2]}
30... Bb4 {[%clk 0:00:42.6]} 31. Nce4 {[%clk 0:00:06.5]} 31... Bxd5 {[%clk
0:00:39.5]} 32. Bc5 {[%clk 0:00:06.5]} 32... Nxe4 {[%clk 0:00:36.6]} 33. Bxe4
{[%clk 0:00:03.1]} 33... Bxe4 {[%clk 0:00:36.7]} 0-1

[Event "*** Titled Tuesday Blitz"]
[Site "Chess.com"]
[Date "2020.05.19"]
[Round "7"]
[White "TigrVShlyape"]
[Black "MateSchmate"]
[Result "1-0"]
[WhiteElo "2820"]
[BlackElo "2550"]
[TimeControl "180+1"]
[EndTime "13:20:04 PDT"]
[Termination "TigrVShlyape won by checkmate"]

1. d4 {[%clk 0:03:00.9]} 1... c5 {[%clk 0:02:59.1]} 2. d5 {[%clk 0:02:59.5]}
2... e5 {[%clk 0:02:59.3]} 3. e4 {[%clk 0:02:58.1]} 3... d6 {[%clk 0:02:59.4]}
4. Nc3 {[%clk 0:02:57.6]} 4... g6 {[%clk 0:02:59.1]} 5. Nf3 {[%clk 0:02:50.4]}
5... Bg7 {[%clk 0:02:59.1]} 6. Nd2 {[%clk 0:02:50]} 6... Ne7 {[%clk 0:02:58.9]}
7. Bb5+ {[%clk 0:02:44.8]} 7... Bd7 {[%clk 0:02:57.4]} 8. Nc4 {[%clk 0:02:43.5]}
8... Nc8 {[%clk 0:02:57]} 9. a4 {[%clk 0:02:41.8]} 9... O-O {[%clk 0:02:54.5]}
10. O-O {[%clk 0:02:41.9]} 10... a6 {[%clk 0:02:40.7]} 11. Bxd7 {[%clk
0:02:40.8]} 11... Nxd7 {[%clk 0:02:40.9]} 12. a5 {[%clk 0:02:29.2]} 12... f5
{[%clk 0:02:38.6]} 13. f4 {[%clk 0:02:25.8]} 13... exf4 {[%clk 0:02:12.4]} 14.
Bxf4 {[%clk 0:02:24.9]} 14... Ne5 {[%clk 0:01:59.5]} 15. Bxe5 {[%clk 0:02:21.9]}
15... Bxe5 {[%clk 0:01:58.6]} 16. Nxe5 {[%clk 0:02:12.3]} 16... dxe5 {[%clk
0:01:57.8]} 17. exf5 {[%clk 0:02:09.3]} 17... gxf5 {[%clk 0:01:46.1]} 18. Qd3
{[%clk 0:02:07.1]} 18... e4 {[%clk 0:01:22.9]} 19. Qg3+ {[%clk 0:01:46.6]} 19...
Kh8 {[%clk 0:01:22.8]} 20. Qe5+ {[%clk 0:01:46.6]} 20... Qf6 {[%clk 0:01:01.2]}
21. Qxf6+ {[%clk 0:01:45.5]} 21... Rxf6 {[%clk 0:01:02.1]} 22. Nxe4 {[%clk
0:01:45.8]} 22... Rg6 {[%clk 0:00:54.8]} 23. Rxf5 {[%clk 0:01:43.5]} 23... Ne7
{[%clk 0:00:50]} 24. Re5 {[%clk 0:01:42.9]} 24... Rg7 {[%clk 0:00:41.5]} 25.
Nxc5 {[%clk 0:01:40.2]} 25... Rc8 {[%clk 0:00:40.1]} 26. b4 {[%clk 0:01:39.4]}
26... Ng6 {[%clk 0:00:37.9]} 27. Re4 {[%clk 0:01:38.7]} 27... h5 {[%clk
0:00:31.3]} 28. d6 {[%clk 0:01:36.3]} 28... h4 {[%clk 0:00:26.2]} 29. d7 {[%clk
0:01:36.1]} 29... Rcg8 {[%clk 0:00:26.3]} 30. Re8 {[%clk 0:01:33.3]} 30... Nf4
{[%clk 0:00:23.4]} 31. d8=Q {[%clk 0:01:29.1]} 31... Rxg2+ {[%clk 0:00:19.4]}
32. Kf1 {[%clk 0:01:27.5]} 32... Rg1+ {[%clk 0:00:18.3]} 33. Kf2 {[%clk
0:01:27.9]} 33... Rg2+ {[%clk 0:00:09.5]} 34. Kf3 {[%clk 0:01:27.7]} 34... Ne6
{[%clk 0:00:10]} 35. Qxh4+ {[%clk 0:01:25.4]} 35... Kg7 {[%clk 0:00:09.4]} 36.
Nxe6+ {[%clk 0:01:25.9]} 36... Kf7 {[%clk 0:00:09.5]} 37. Qe7+ {[%clk
0:01:25.5]} 37... Kg6 {[%clk 0:00:09.8]} 38. Rxg8+ {[%clk 0:01:25.8]} 38... Kf5
{[%clk 0:00:10.7]} 39. Rxg2 {[%clk 0:01:23.9]} 39... b6 {[%clk 0:00:09.1]} 40.
axb6 {[%clk 0:01:22.8]} 40... a5 {[%clk 0:00:09.1]} 41. b7 {[%clk 0:01:21.3]}
41... a4 {[%clk 0:00:09.2]} 42. b8=R {[%clk 0:01:19.6]} 42... a3 {[%clk
0:00:10.1]} 43. Rf8+ {[%clk 0:01:16.6]} 43... Ke5 {[%clk 0:00:10.1]} 44. Nf4+
{[%clk 0:01:14.5]} 44... Kd4 {[%clk 0:00:09.8]} 45. Rd8+ {[%clk 0:01:13.1]}
45... Kc3 {[%clk 0:00:10.7]} 46. b5 {[%clk 0:01:11.6]} 46... Kb2 {[%clk
0:00:11.6]} 47. Rxa3 {[%clk 0:01:10]} 47... Kb1 {[%clk 0:00:11.7]} 48. c4 {[%clk
0:01:09.3]} 48... Kc1 {[%clk 0:00:12.6]} 49. c5 {[%clk 0:01:03.3]} 49... Kb1
{[%clk 0:00:13.5]} 50. c6 {[%clk 0:01:03.5]} 50... Kc1 {[%clk 0:00:14.3]} 51. c7
{[%clk 0:01:03.7]} 51... Kb1 {[%clk 0:00:15]} 52. b6 {[%clk 0:01:03.9]} 52...
Kc1 {[%clk 0:00:14.9]} 53. b7 {[%clk 0:01:04.2]} 53... Kb1 {[%clk 0:00:15.8]}
54. b8=R+ {[%clk 0:01:03.5]} 54... Kc1 {[%clk 0:00:16.1]} 55. c8=R# {[%clk
0:01:03.2]} 1-0